[Event "41st Jacques-Lemans-Open 2022"]
[Site "St. Veit/Glan"]
[Date "2022.07.15"]
[Round "8.20"]
[White "Hechl, Fabian"]
[Black "Bauer, Thomas"]
[Result "1-0"]
[ECO "B50"]
[WhiteElo "1991"]
[BlackElo "2228"]
[Annotator "ChessBase"]
[PlyCount "73"]
[EventDate "2022.07.09"]
[EventType "swiss"]
[EventCountry "AUT"]
[SourceTitle "playchess.com"]
[Source "ChessBase"]
[SourceQuality "1"]
[TimeControl "40/5400+30:1800+30"]

1. e4 {[%emt 0:00:04]} c5 {[%emt 0:00:01]} 2. Nf3 {[%emt 0:00:06]} d6 {[%emt 0:00:04]} 3. Nc3 {[%emt 0:00:09]} Nf6 {[%emt 0:00:39]} 4. e5 {[%emt 0:00:04]} dxe5 {[%emt 0:01:39]} 5. Nxe5 {[%emt 0:00:02]} a6 {[%emt 0:05:58]} 6. g3 {[%emt 0:00:23]} Qc7 {[%emt 0:06:21]} 7. d4 {[%emt 0:00:06]} cxd4 {[%emt 0:08:04]} 8. Qxd4 {[%emt 0:00:01]} Nc6 {[%emt 0:01:17]} 9. Nxc6 {[%emt 0:00:02]} Qxc6 {[%emt 0:00:12]} 10. Bg5 {[%emt 0:00:02]} Nd7 {[%emt 0:09:09]} 11. O-O-O {[%emt 0:24:32]} f6 {[%emt 0:02:41]} 12. Bc4 {[%emt 0:13:30]} e5 {[%emt 0:09:29]} 13. Rhe1 {[%emt 0:03:15]} Be7 {[%emt 0:01:09]} 14. Qd5 {[%emt 0:06:40]} fxg5 {[%emt 0:19:05]} 15. Qf7+ {[%emt 0:03:27]} Kd8 {[%emt 0:01:52]} 16. Rxe5 {[%emt 0:17:09]} Bf6 {[%emt 0:05:13]} 17. Re6 {[%emt 0:16:23]} Qc5 {[%emt 0:12:53]} 18. Rxf6 {[%emt 0:05:03]} gxf6 {[%emt 0:01:36]} 19. Qxf6+ {[%emt 0:00:15]} Kc7 {[%emt 0:00:14]} 20. Qxh8 {[%emt 0:00:53]} Qxc4 {[%emt 0:00:25]} 21. Qxh7 {[%emt 0:01:48]} a5 {[%emt 0:02:14]} 22. Qf5 {[%emt 0:02:40]} g4 {[%emt 0:00:58]} 23. Nb5+ {[%emt 0:01:31]} Kb8 {[%emt 0:00:02]} 24. Rxd7 {[%emt 0:00:19]} Qf1+ {[%emt 0:01:57]} 25. Kd2 {[%emt 0:00:07]} Ra6 {[%emt 0:00:24]} 26. Rd8 {[%emt 0:01:54]} Rc6 {[%emt 0:00:47]} 27. Qe5+ {[%emt 0:02:35]} Ka8 {[%emt 0:00:01]} 28. Nc7+ {[%emt 0:00:47]} Kb8 {[%emt 0:00:38]} 29. Ne8+ {[%emt 0:00:36]} Ka8 {[%emt 0:01:47]} 30. Qxa5+ {[%emt 0:00:17]} Kb8 {[%emt 0:00:02]} 31. Qe5+ {[%emt 0:00:14]} Ka7 {[%emt 0:01:21]} 32. Qd4+ {[%emt 0:01:00]} Kb8 {[%emt 0:01:53]} 33. Nd6 {[%emt 0:00:22]} Qh3 {[%emt 0:04:23]} 34. Nxc8 {[%emt 0:00:29]} Qh6+ {[%emt 0:00:29]} 35. Qf4+ {[%emt 0:00:06]} Qxf4+ {[%emt 0:01:05]} 36. gxf4 {[%emt 0:00:03]} Kc7 {[%emt 0:00:09]} 37. Rh8 {[%emt 0:00:21]} 1-0

[Event "41st Jacques-Lemans-Open 2022"]
[Site "St. Veit/Glan"]
[Date "2022.07.15"]
[Round "8.21"]
[White "Schein, Karl-Heinz"]
[Black "Higatsberger, Michael"]
[Result "1/2-1/2"]
[ECO "D32"]
[WhiteElo "2167"]
[BlackElo "2021"]
[Annotator "ChessBase"]
[PlyCount "73"]
[EventDate "2022.07.09"]
[EventType "swiss"]
[EventCountry "AUT"]
[SourceTitle "playchess.com"]
[Source "ChessBase"]
[SourceQuality "1"]
[TimeControl "40/5400+30:1800+30"]

1. d4 {[%emt 0:00:06]} d5 {[%emt 0:00:07]} 2. c4 {[%emt 0:00:08]} e6 {[%emt 0:00:09]} 3. Nc3 {[%emt 0:00:16]} c5 {[%emt 0:00:15]} 4. cxd5 {[%emt 0:00:36]} exd5 {[%emt 0:00:07]} 5. Nf3 {[%emt 0:00:19]} Nc6 {[%emt 0:00:11]} 6. dxc5 {[%emt 0:00:38]} d4 {[%emt 0:00:12]} 7. Na4 {[%emt 0:00:22]} Bxc5 {[%emt 0:00:19]} 8. Nxc5 {[%emt 0:00:24]} Qa5+ {[%emt 0:00:07]} 9. Bd2 {[%emt 0:00:11]} Qxc5 {[%emt 0:00:04]} 10. Rc1 {[%emt 0:00:13]} Qb6 {[%emt 0:00:22]} 11. e3 {[%emt 0:00:24]} Nf6 {[%emt 0:01:01]} 12. Bc4 {[%emt 0:02:30]} dxe3 {[%emt 0:00:35]} 13. Bxe3 {[%emt 0:01:43]} Qb4+ {[%emt 0:00:15]} 14. Qd2 {[%emt 0:04:40]} Qxd2+ {[%emt 0:00:31]} 15. Nxd2 {[%emt 0:00:21]} O-O {[%emt 0:03:05]} 16. O-O {[%emt 0:00:23]} Be6 {[%emt 0:00:28]} 17. Bxe6 {[%emt 0:02:28]} fxe6 {[%emt 0:00:07]} 18. Nc4 {[%emt 0:01:20]} Rfd8 {[%emt 0:10:58]} 19. Rfd1 {[%emt 0:02:23]} Rxd1+ {[%emt 0:03:28]} 20. Rxd1 {[%emt 0:00:06]} Nd5 {[%emt 0:00:09]} 21. Kf1 {[%emt 0:06:38]} Rd8 {[%emt 0:07:33]} 22. Ke2 {[%emt 0:01:45]} b5 {[%emt 0:02:20]} 23. Na3 {[%emt 0:04:26]} a6 {[%emt 0:03:15]} 24. Nc2 {[%emt 0:05:15]} Rc8 {[%emt 0:02:55]} 25. Ne1 {[%emt 0:07:34]} Ncb4 {[%emt 0:04:18]} 26. a3 {[%emt 0:02:14]} Nc2 {[%emt 0:06:21]} 27. Nxc2 {[%emt 0:02:37]} Rxc2+ {[%emt 0:00:06]} 28. Rd2 {[%emt 0:00:15]} Rc4 {[%emt 0:04:57]} 29. Kd3 {[%emt 0:06:04]} Kf7 {[%emt 0:01:05]} 30. g3 {[%emt 0:14:58]} Ke7 {[%emt 0:02:44]} 31. Bd4 {[%emt 0:02:27]} g6 {[%emt 0:00:47]} 32. Re2 {[%emt 0:05:15]} Rc1 {[%emt 0:01:30]} 33. Rc2 {[%emt 0:04:24]} Rxc2 {[%emt 0:01:27]} 34. Kxc2 {[%emt 0:00:09]} Kd6 {[%emt 0:01:19]} 35. Kd3 {[%emt 0:03:18]} e5 {[%emt 0:01:23]} 36. Ba7 {[%emt 0:03:09]} Nf6 {[%emt 0:00:33]} 37. f4 {[%emt 0:05:43]} 1/2-1/2

[Event "41st Jacques-Lemans-Open 2022"]
[Site "St. Veit/Glan"]
[Date "2022.07.15"]
[Round "8.22"]
[White "Schwab, Lukas"]
[Black "Fuchs, Patrick"]
[Result "1/2-1/2"]
[ECO "B33"]
[WhiteElo "2166"]
[BlackElo "1990"]
[Annotator "ChessBase"]
[PlyCount "45"]
[EventDate "2022.07.09"]
[EventType "swiss"]
[EventCountry "AUT"]
[SourceTitle "playchess.com"]
[Source "ChessBase"]
[SourceQuality "1"]
[TimeControl "40/5400+30:1800+30"]

1. e4 {[%emt 0:00:03]} c5 {[%emt 0:00:08]} 2. Nf3 {[%emt 0:00:06]} Nc6 {[%emt 0:00:08]} 3. d4 {[%emt 0:00:10]} cxd4 {[%emt 0:00:06]} 4. Nxd4 {[%emt 0:00:10]} Nf6 {[%emt 0:00:07]} 5. Nc3 {[%emt 0:00:21]} e5 {[%emt 0:00:12]} 6. Ndb5 {[%emt 0:00:15]} d6 {[%emt 0:00:10]} 7. Bg5 {[%emt 0:00:51]} a6 {[%emt 0:00:12]} 8. Na3 {[%emt 0:00:05]} b5 {[%emt 0:00:05]} 9. Nd5 {[%emt 0:00:05]} Be7 {[%emt 0:00:08]} 10. Bxf6 {[%emt 0:00:11]} Bxf6 {[%emt 0:00:08]} 11. c3 {[%emt 0:03:09]} O-O {[%emt 0:00:12]} 12. Nc2 {[%emt 0:00:20]} Rb8 {[%emt 0:00:11]} 13. g3 {[%emt 0:00:21]} Bg5 {[%emt 0:00:10]} 14. Bg2 {[%emt 0:00:26]} a5 {[%emt 0:00:13]} 15. O-O {[%emt 0:00:27]} Ne7 {[%emt 0:00:14]} 16. Nce3 {[%emt 0:01:26]} Bxe3 {[%emt 0:00:10]} 17. Nxe3 {[%emt 0:01:08]} Be6 {[%emt 0:00:15]} 18. Qd2 {[%emt 0:02:57]} Qb6 {[%emt 0:00:11]} 19. Kh1 {[%emt 0:07:06]} b4 {[%emt 0:15:28]} 20. c4 {[%emt 0:03:42]} Rfd8 {[%emt 0:13:52]} 21. f4 {[%emt 0:07:06]} f6 {[%emt 0:00:15]} 22. b3 {[%emt 0:05:04]} Nc6 {[%emt 0:00:34]} 23. Nc2 {[%emt 0:05:30]} 1/2-1/2

[Event "41st Jacques-Lemans-Open 2022"]
[Site "St. Veit/Glan"]
[Date "2022.07.15"]
[Round "8.23"]
[White "Ernst, Robert"]
[Black "Kienboeck, Benjamin"]
[Result "1/2-1/2"]
[ECO "E44"]
[WhiteElo "2001"]
[BlackElo "2151"]
[Annotator "ChessBase"]
[PlyCount "93"]
[EventDate "2022.07.09"]
[EventType "swiss"]
[EventCountry "AUT"]
[SourceTitle "playchess.com"]
[Source "ChessBase"]
[SourceQuality "1"]
[TimeControl "40/5400+30:1800+30"]

1. d4 {[%emt 0:00:05]} Nf6 {[%emt 0:00:07]} 2. c4 {[%emt 0:00:13]} e6 {[%emt 0:00:08]} 3. Nc3 {[%emt 0:00:11]} Bb4 {[%emt 0:00:10]} 4. e3 {[%emt 0:00:23]} b6 {[%emt 0:00:16]} 5. Nge2 {[%emt 0:00:36]} Ne4 {[%emt 0:00:17]} 6. Qc2 {[%emt 0:01:41]} Bb7 {[%emt 0:00:20]} 7. a3 {[%emt 0:01:24]} Bxc3+ {[%emt 0:00:10]} 8. Nxc3 {[%emt 0:00:15]} Nxc3 {[%emt 0:00:10]} 9. Qxc3 {[%emt 0:00:34]} d6 {[%emt 0:00:14]} 10. Bd3 {[%emt 0:18:59]} Qg5 {[%emt 0:09:42]} 11. Rg1 {[%emt 0:07:02]} Qh4 {[%emt 0:01:24]} 12. h3 {[%emt 0:01:51]} O-O {[%emt 0:00:53]} 13. b4 {[%emt 0:05:16]} a5 {[%emt 0:01:58]} 14. Bb2 {[%emt 0:00:24]} axb4 {[%emt 0:00:30]} 15. axb4 {[%emt 0:00:02]} Rxa1+ {[%emt 0:02:08]} 16. Bxa1 {[%emt 0:00:01]} Nd7 {[%emt 0:13:17]} 17. Ke2 {[%emt 0:15:48]} f5 {[%emt 0:11:06]} 18. Bb2 {[%emt 0:12:39]} Qe7 {[%emt 0:12:39]} 19. f4 {[%emt 0:14:16]} Nf6 {[%emt 0:05:10]} 20. g4 {[%emt 0:00:55]} fxg4 {[%emt 0:01:38]} 21. hxg4 {[%emt 0:00:01]} Ne4 {[%emt 0:13:18]} 22. Qc2 {[%emt 0:00:50]} d5 {[%emt 0:00:14]} 23. Bxe4 {[%emt 0:00:57]} dxe4 {[%emt 0:00:01]} 24. b5 {[%emt 0:01:56]} Ra8 {[%emt 0:02:22]} 25. Qc3 {[%emt 0:02:16]} Ra4 {[%emt 0:02:11]} 26. Ra1 {[%emt 0:00:48]} Rxa1 {[%emt 0:01:53]} 27. Bxa1 {[%emt 0:00:00]} Qh4 {[%emt 0:00:50]} 28. g5 {[%emt 0:00:19]} Bc8 {[%emt 0:07:15]} 29. d5 {[%emt 0:04:13]} e5 {[%emt 0:00:01]} 30. Qxe5 {[%emt 0:01:56]} Bg4+ {[%emt 0:00:23]} 31. Kd2 {[%emt 0:00:36]} Qf2+ {[%emt 0:00:11]} 32. Kc3 {[%emt 0:05:23]} Qxe3+ {[%emt 0:07:05]} 33. Kb4 {[%emt 0:00:23]} Qc5+ {[%emt 0:00:58]} 34. Kc3 {[%emt 0:04:21]} Bd7 {[%emt 0:02:13]} 35. Bb2 {[%emt 0:00:29]} Bxb5 {[%emt 0:04:55]} 36. Qe6+ {[%emt 0:00:16]} Kf8 {[%emt 0:00:01]} 37. Qf5+ {[%emt 0:00:17]} Ke7 {[%emt 0:00:16]} 38. Qxe4+ {[%emt 0:00:34]} Kd8 {[%emt 0:00:28]} 39. Kb3 {[%emt 0:00:44]} Bd7 {[%emt 0:01:13]} 40. Ba3 {[%emt 0:01:04]} Qa5 {[%emt 0:01:39]} 41. Qe7+ {[%emt 0:01:05]} Kc8 {[%emt 0:02:19]} 42. Qb4 {[%emt 0:01:40]} Qa6 {[%emt 0:04:13]} 43. f5 {[%emt 0:01:42]} Qa5 {[%emt 0:02:24]} 44. Qxa5 {[%emt 0:01:32]} bxa5 {[%emt 0:00:00]} 45. f6 {[%emt 0:00:13]} gxf6 {[%emt 0:00:01]} 46. gxf6 {[%emt 0:00:07]} Be8 {[%emt 0:00:11]} 47. f7 {[%emt 0:01:15]} 1/2-1/2

[Event "41st Jacques-Lemans-Open 2022"]
[Site "St. Veit/Glan"]
[Date "2022.07.15"]
[Round "8.24"]
[White "Kempe, Caius Emilian"]
[Black "Leitner, Gerald"]
[Result "0-1"]
[ECO "D15"]
[WhiteElo "1877"]
[BlackElo "2145"]
[Annotator "ChessBase"]
[PlyCount "134"]
[EventDate "2022.07.09"]
[EventType "swiss"]
[EventCountry "AUT"]
[SourceTitle "playchess.com"]
[Source "ChessBase"]
[SourceQuality "1"]
[TimeControl "40/5400+30:1800+30"]

1. d4 {[%emt 0:00:02]} d5 {[%emt 0:00:01]} 2. c4 c6 3. Nc3 {[%emt 0:00:21]} Nf6 {[%emt 0:00:12]} 4. Nf3 {[%emt 0:00:30]} a6 {[%emt 0:00:46]} 5. cxd5 {[%emt 0:00:32]} cxd5 {[%emt 0:00:01]} 6. Bg5 {[%emt 0:00:36]} Nc6 {[%emt 0:02:07]} 7. e3 {[%emt 0:01:10]} Ne4 {[%emt 0:09:51]} 8. Nxe4 {[%emt 0:09:22]} dxe4 {[%emt 0:02:49]} 9. Nd2 {[%emt 0:00:02]} Qa5 {[%emt 0:00:20]} 10. Bf4 {[%emt 0:00:12]} Bf5 {[%emt 0:06:06]} 11. Be2 {[%emt 0:01:02]} e5 {[%emt 0:01:43]} 12. dxe5 {[%emt 0:02:43]} Rd8 {[%emt 0:01:09]} 13. a3 {[%emt 0:00:36]} Nxe5 {[%emt 0:09:08]} 14. b4 {[%emt 0:01:27]} Qd5 {[%emt 0:03:43]} 15. Nb3 {[%emt 0:07:05]} Nd3+ {[%emt 0:05:01]} 16. Bxd3 {[%emt 0:00:10]} exd3 {[%emt 0:00:01]} 17. O-O {[%emt 0:00:12]} g5 {[%emt 0:19:06]} 18. Bg3 {[%emt 0:06:36]} Bg7 {[%emt 0:00:07]} 19. Rc1 {[%emt 0:00:49]} d2 {[%emt 0:04:35]} 20. Rc5 {[%emt 0:00:41]} Qd3 {[%emt 0:00:04]} 21. Nd4 {[%emt 0:12:10]} Bxd4 {[%emt 0:03:24]} 22. exd4 {[%emt 0:02:12]} O-O {[%emt 0:03:54]} 23. Rxf5 {[%emt 0:17:55]} Qxf5 {[%emt 0:00:02]} 24. Qxd2 {[%emt 0:00:17]} Rfe8 {[%emt 0:00:35]} 25. f3 {[%emt 0:00:44]} Qd5 {[%emt 0:02:42]} 26. Bf2 {[%emt 0:00:09]} Re6 {[%emt 0:00:33]} 27. Qc2 {[%emt 0:01:31]} Rc6 {[%emt 0:00:37]} 28. Qd2 {[%emt 0:00:33]} Rdc8 {[%emt 0:00:41]} 29. h4 {[%emt 0:01:42]} gxh4 {[%emt 0:00:59]} 30. Bxh4 {[%emt 0:00:26]} Rc2 {[%emt 0:03:04]} 31. Qf4 {[%emt 0:00:16]} Qh5 {[%emt 0:02:10]} 32. Re1 {[%emt 0:10:44]} Qg6 {[%emt 0:01:09]} 33. g3 {[%emt 0:00:49]} h6 {[%emt 0:00:35]} 34. g4 {[%emt 0:00:46]} Ra2 {[%emt 0:01:00]} 35. Bf6 {[%emt 0:03:13]} Qc2 {[%emt 0:01:08]} 36. Qg3 {[%emt 0:00:11]} Qd2 {[%emt 0:00:19]} 37. g5 {[%emt 0:01:54]} Qc2 {[%emt 0:06:36]} 38. gxh6+ {[%emt 0:13:14]} Qg6 {[%emt 0:00:02]} 39. Qxg6+ {[%emt 0:00:28]} fxg6 {[%emt 0:00:01]} 40. Rd1 {[%emt 0:00:49]} Rcc2 {[%emt 0:00:28]} 41. Bg7 {[%emt 0:30:44]} Kh7 {[%emt 0:33:49]} 42. f4 {[%emt 0:03:13]} b5 {[%emt 0:00:37]} 43. Kf1 {[%emt 0:00:44]} Rf2+ {[%emt 0:01:25]} 44. Kg1 {[%emt 0:00:07]} Rg2+ {[%emt 0:00:19]} 45. Kh1 {[%emt 0:00:09]} Rh2+ {[%emt 0:03:54]} 46. Kg1 {[%emt 0:00:06]} Rag2+ 47. Kf1 {[%emt 0:00:08]} Rg4 {[%emt 0:00:49]} 48. Re1 {[%emt 0:00:24]} Rxf4+ {[%emt 0:00:00]} 49. Kg1 {[%emt 0:00:00]} Rh5 {[%emt 0:00:00]} 50. Kg2 {[%emt 0:00:00]} Rg5+ {[%emt 0:00:00]} 51. Kh3 {[%emt 0:00:00]} Rf3+ {[%emt 0:00:00]} 52. Kh2 {[%emt 0:00:00]} Rf2+ {[%emt 0:00:00]} 53. Kh3 {[%emt 0:00:00]} Rgf5 {[%emt 0:00:00]} 54. Kg3 {[%emt 0:00:00]} R2f3+ {[%emt 0:00:00]} 55. Kg2 {[%emt 0:00:00]} g5 {[%emt 0:00:25]} 56. Re7 {[%emt 0:00:00]} Rf7 {[%emt 0:01:13]} 57. Re5 {[%emt 0:00:00]} g4 {[%emt 0:01:07]} 58. Re4 {[%emt 0:00:00]} Rxa3 {[%emt 0:00:43]} 59. Rxg4 {[%emt 0:00:00]} Ra4 {[%emt 0:00:15]} 60. d5 {[%emt 0:00:00]} a5 {[%emt 0:00:32]} 61. d6 {[%emt 0:00:00]} axb4 {[%emt 0:00:07]} 62. Rd4 {[%emt 0:00:00]} b3 {[%emt 0:02:32]} 63. Rd1 {[%emt 0:00:00]} Rd7 {[%emt 0:00:48]} 64. Kf3 {[%emt 0:00:00]} Ra6 {[%emt 0:00:39]} 65. Rd5 {[%emt 0:00:00]} Rdxd6 {[%emt 0:00:28]} 66. Rxb5 {[%emt 0:00:00]} Rab6 {[%emt 0:00:07]} 67. Rg5 {[%emt 0:00:00]} b2 {[%emt 0:00:25]} 0-1

[Event "41st Jacques-Lemans-Open 2022"]
[Site "St. Veit/Glan"]
[Date "2022.07.15"]
[Round "8.25"]
[White "Praznik, Anton"]
[Black "Blasge, Tobias"]
[Result "0-1"]
[ECO "B12"]
[WhiteElo "2137"]
[BlackElo "1826"]
[Annotator "ChessBase"]
[PlyCount "118"]
[EventDate "2022.07.09"]
[EventType "swiss"]
[EventCountry "AUT"]
[SourceTitle "playchess.com"]
[Source "ChessBase"]
[SourceQuality "1"]
[TimeControl "40/5400+30:1800+30"]

1. e4 {[%emt 0:00:12]} c6 {[%emt 0:00:03]} 2. d4 {[%emt 0:00:09]} d5 {[%emt 0:00:04]} 3. e5 {[%emt 0:00:09]} Bf5 {[%emt 0:00:05]} 4. Ne2 {[%emt 0:00:10]} e6 {[%emt 0:00:23]} 5. h4 {[%emt 0:00:12]} h5 {[%emt 0:00:08]} 6. Nd2 {[%emt 0:00:57]} c5 {[%emt 0:00:36]} 7. c3 {[%emt 0:00:25]} Nc6 {[%emt 0:00:22]} 8. Nb3 {[%emt 0:00:40]} c4 {[%emt 0:00:52]} 9. Nd2 {[%emt 0:00:10]} f6 {[%emt 0:01:09]} 10. f4 {[%emt 0:02:54]} Be7 {[%emt 0:01:19]} 11. g3 {[%emt 0:01:44]} Nh6 {[%emt 0:04:44]} 12. Bg2 {[%emt 0:06:13]} b5 {[%emt 0:09:49]} 13. Bf3 {[%emt 0:08:07]} Bg6 {[%emt 0:14:47]} 14. Nf1 {[%emt 0:05:15]} O-O {[%emt 0:08:40]} 15. Ng1 {[%emt 0:04:00]} fxe5 {[%emt 0:02:39]} 16. fxe5 {[%emt 0:05:59]} Ng4 {[%emt 0:13:14]} 17. Ne3 {[%emt 0:05:54]} Nxe3 {[%emt 0:20:01]} 18. Bxe3 {[%emt 0:00:21]} Bd3 {[%emt 0:00:14]} 19. Be2 {[%emt 0:03:03]} Be4 {[%emt 0:01:11]} 20. Nf3 {[%emt 0:00:20]} b4 {[%emt 0:00:43]} 21. O-O {[%emt 0:01:09]} Qa5 {[%emt 0:00:44]} 22. Qd2 {[%emt 0:02:16]} Rab8 {[%emt 0:01:22]} 23. Ng5 {[%emt 0:13:31]} Bxg5 {[%emt 0:03:39]} 24. Rxf8+ {[%emt 0:06:34]} Rxf8 {[%emt 0:00:43]} 25. Bxg5 {[%emt 0:00:22]} Bg6 {[%emt 0:03:57]} 26. a3 {[%emt 0:11:33]} bxc3 {[%emt 0:01:40]} 27. bxc3 {[%emt 0:00:27]} Qb6 {[%emt 0:00:39]} 28. g4 {[%emt 0:03:23]} hxg4 {[%emt 0:00:48]} 29. Bxg4 {[%emt 0:00:41]} Nxe5 {[%emt 0:00:20]} 30. Be2 {[%emt 0:08:00]} Nf3+ {[%emt 0:02:08]} 31. Bxf3 {[%emt 0:00:03]} Rxf3 {[%emt 0:00:06]} 32. Rf1 {[%emt 0:02:48]} Rg3+ {[%emt 0:06:31]} 33. Kh2 {[%emt 0:01:49]} Rd3 {[%emt 0:00:05]} 34. Qe1 {[%emt 0:02:56]} Be4 {[%emt 0:02:39]} 35. Rf2 {[%emt 0:02:47]} e5 {[%emt 0:00:39]} 36. Be3 {[%emt 0:02:06]} Qd8 {[%emt 0:00:39]} 37. Rf1 {[%emt 0:00:28]} Qd6 {[%emt 0:00:36]} 38. dxe5 {[%emt 0:00:59]} Qxe5+ {[%emt 0:00:13]} 39. Bf4 {[%emt 0:00:23]} Qxc3 {[%emt 0:00:29]} 40. Qxc3 {[%emt 0:00:30]} Rxc3 {[%emt 0:00:03]} 41. Be5 {[%emt 0:30:43]} Rxa3 {[%emt 0:06:02]} 42. Rg1 {[%emt 0:00:00]} g6 {[%emt 0:08:50]} 43. h5 {[%emt 0:00:00]} Kh7 {[%emt 0:01:31]} 44. hxg6+ {[%emt 0:00:00]} Bxg6 {[%emt 0:01:43]} 45. Bd4 {[%emt 0:00:00]} Rf3 {[%emt 0:11:04]} 46. Ra1 {[%emt 0:00:00]} Kh6 {[%emt 0:01:46]} 47. Rxa7 {[%emt 0:00:00]} Be4 {[%emt 0:00:32]} 48. Kg1 {[%emt 0:00:00]} Kg5 {[%emt 0:01:05]} 49. Rg7+ {[%emt 0:00:00]} Kf4 {[%emt 0:00:15]} 50. Rd7 {[%emt 0:00:00]} Rd3 {[%emt 0:00:18]} 51. Bc5 {[%emt 0:01:03]} c3 {[%emt 0:01:41]} 52. Rf7+ {[%emt 0:03:03]} Bf5 {[%emt 0:00:31]} 53. Kf2 {[%emt 0:01:08]} c2 {[%emt 0:00:31]} 54. Bd6+ {[%emt 0:00:40]} Ke4 {[%emt 0:00:21]} 55. Re7+ {[%emt 0:00:10]} Kd4 {[%emt 0:00:37]} 56. Bf4 {[%emt 0:00:24]} Rd1 {[%emt 0:00:25]} 57. Rc7 {[%emt 0:00:17]} Bd3 {[%emt 0:00:26]} 58. Be3+ {[%emt 0:00:16]} Ke5 {[%emt 0:00:26]} 59. Rc8 {[%emt 0:00:53]} Bc4 {[%emt 0:00:28]} 0-1

[Event "41st Jacques-Lemans-Open 2022"]
[Site "St. Veit/Glan"]
[Date "2022.07.15"]
[Round "8.26"]
[White "Miazhynski, Michael"]
[Black "Zoernpfenning, Siegfried"]
[Result "1/2-1/2"]
[ECO "C26"]
[WhiteElo "1994"]
[BlackElo "2114"]
[Annotator "ChessBase"]
[PlyCount "55"]
[EventDate "2022.07.09"]
[EventType "swiss"]
[EventCountry "AUT"]
[SourceTitle "playchess.com"]
[Source "ChessBase"]
[SourceQuality "1"]
[TimeControl "40/5400+30:1800+30"]

1. e4 {[%emt 0:00:03]} e5 {[%emt 0:00:11]} 2. Nc3 {[%emt 0:00:18]} Nf6 {[%emt 0:00:45]} 3. g3 {[%emt 0:00:12]} Bb4 {[%emt 0:05:49]} 4. Nge2 {[%emt 0:02:25]} O-O {[%emt 0:03:56]} 5. Bg2 {[%emt 0:03:11]} c6 {[%emt 0:05:16]} 6. O-O {[%emt 0:05:58]} d5 {[%emt 0:01:11]} 7. a3 {[%emt 0:22:32]} Bxc3 {[%emt 0:09:40]} 8. Nxc3 {[%emt 0:00:32]} d4 {[%emt 0:00:14]} 9. Ne2 {[%emt 0:01:17]} d3 {[%emt 0:00:13]} 10. Nc3 {[%emt 0:01:08]} Bg4 {[%emt 0:07:00]} 11. f3 {[%emt 0:12:27]} Be6 {[%emt 0:11:07]} 12. Re1 dxc2 {[%emt 0:00:16]} 13. Qxc2 {[%emt 0:00:37]} Qb6+ 14. Kh1 {[%emt 0:02:09]} Bb3 {[%emt 0:00:47]} 15. Qb1 c5 {[%emt 0:01:31]} 16. d3 {[%emt 0:01:27]} Nc6 {[%emt 0:00:24]} 17. Be3 {[%emt 0:18:08]} Nd4 {[%emt 0:02:51]} 18. Rc1 Rac8 19. f4 {[%emt 0:02:11]} Ng4 {[%emt 0:05:17]} 20. Bg1 {[%emt 0:00:15]} exf4 {[%emt 0:00:36]} 21. gxf4 {[%emt 0:01:40]} Qh6 {[%emt 0:02:16]} 22. Rf1 {[%emt 0:02:57]} Bc2 {[%emt 0:03:57]} 23. Qe1 {[%emt 0:01:29]} Bxd3 {[%emt 0:00:16]} 24. Qg3 {[%emt 0:00:53]} Bxf1 {[%emt 0:00:43]} 25. Rxf1 {[%emt 0:00:26]} Nf6 {[%emt 0:05:28]} 26. f5 {[%emt 0:02:41]} Qh5 {[%emt 0:05:02]} 27. e5 {[%emt 0:02:58]} Nxf5 {[%emt 0:01:33]} 28. Qf4 {[%emt 0:04:31]} 1/2-1/2

[Event "41st Jacques-Lemans-Open 2022"]
[Site "St. Veit/Glan"]
[Date "2022.07.15"]
[Round "8.27"]
[White "Sucher, Johannes"]
[Black "Tumanyan, Gor"]
[Result "1-0"]
[ECO "A05"]
[WhiteElo "2164"]
[BlackElo "1884"]
[Annotator "ChessBase"]
[PlyCount "47"]
[EventDate "2022.07.09"]
[EventType "swiss"]
[EventCountry "AUT"]
[SourceTitle "playchess.com"]
[Source "ChessBase"]
[SourceQuality "1"]
[TimeControl "40/5400+30:1800+30"]

1. Nf3 {[%emt 0:00:03]} Nf6 {[%emt 0:00:17]} 2. g3 {[%emt 0:00:12]} c5 {[%emt 0:00:56]} 3. Bg2 {[%emt 0:00:13]} Nc6 {[%emt 0:03:32]} 4. d4 {[%emt 0:01:13]} cxd4 {[%emt 0:05:15]} 5. Nxd4 {[%emt 0:00:12]} e5 {[%emt 0:29:56]} 6. Nb5 {[%emt 0:07:17]} d6 {[%emt 0:02:13]} 7. c4 {[%emt 0:05:13]} Be7 {[%emt 0:02:57]} 8. O-O {[%emt 0:00:21]} O-O {[%emt 0:03:11]} 9. b3 {[%emt 0:00:47]} Be6 {[%emt 0:05:44]} 10. N1c3 {[%emt 0:04:57]} a6 {[%emt 0:02:31]} 11. Na3 {[%emt 0:00:11]} Rc8 {[%emt 0:09:33]} 12. Nc2 {[%emt 0:06:56]} Qc7 {[%emt 0:03:50]} 13. Bb2 {[%emt 0:05:58]} Rfd8 {[%emt 0:02:20]} 14. Ne3 {[%emt 0:00:33]} Bf8 {[%emt 0:03:48]} 15. Qd2 {[%emt 0:02:26]} Ne7 {[%emt 0:07:52]} 16. Rfd1 {[%emt 0:13:40]} Nf5 {[%emt 0:04:07]} 17. Ncd5 {[%emt 0:05:32]} Nxd5 {[%emt 0:00:41]} 18. Nxd5 {[%emt 0:02:45]} Bxd5 {[%emt 0:02:17]} 19. Qxd5 {[%emt 0:01:24]} b5 {[%emt 0:02:37]} 20. cxb5 {[%emt 0:01:03]} axb5 {[%emt 0:00:23]} 21. Bh3 {[%emt 0:06:44]} Qc2 {[%emt 0:02:50]} 22. Rd2 {[%emt 0:01:56]} Qc6 {[%emt 0:04:04]} 23. Qxc6 {[%emt 0:01:00]} Rxc6 {[%emt 0:00:03]} 24. Bxf5 {[%emt 0:00:06]} 1-0